[Event "Turkish Second League 2019"]
[Site "Konya"]
[Date "2019.07.26"]
[Round "7"]
[White "Ilkbahar, Nimet Seray"]
[Black "Catal, Uktenur"]
[Result "1/2-1/2"]
[ECO "C02"]
[WhiteElo "1531"]
[BlackElo "1885"]
[Annotator "NA"]
[PlyCount "60"]
[EventDate "2019.07.22"]
[EventType "team-tourn"]
[EventCountry "TUR"]
[SourceTitle "playchess.com"]
[Source "ChessBase"]
[SourceQuality "1"]
[TimeControl "5400+30"]

1. e4 {[%emt 0:00:30]} e6 {[%emt 0:00:30]} 2. d4 {[%emt 0:00:00]} d5 {[%emt 0:00:30]} 3. e5 {[%emt 0:00:00]} c5 {[%emt 0:00:00]} 4. c3 {[%emt 0:00:30]} Nc6 {[%emt 0:00:00]} 5. Nf3 {[%emt 0:00:00]} Qb6 {[%emt 0:00:00]} 6. Bd3 {[%emt 0:00:00]} Bd7 {[%emt 0:00:00]} 7. dxc5 {[%emt 0:00:00]} Bxc5 {[%emt 0:00:00]} 8. O-O {[%emt 0:00:00]} Be7 {[%emt 0:07:00]} 9. Qe2 {[%emt 0:00:30]} Nh6 {[%emt 0:06:30]} 10. Nbd2 {[%emt 0:12:30]} Nf5 {[%emt 0:03:30]} 11. Nb3 {[%emt 0:02:30]} a5 {[%emt 0:07:30]} 12. Rd1 {[%emt 0:09:30]} a4 {[%emt 0:09:30]} 13. Nbd2 {[%emt 0:01:30]} g5 {[%emt 0:03:30]} 14. Nf1 {[%emt 0:07:30]} g4 {[%emt 0:11:30]} 15. Ne1 {[%emt 0:01:30]} Nh4 {[%emt 0:16:30]} 16. Qxg4 {[%emt 0:32:30]} Nxe5 {[%emt 0:00:30]} 17. Qg7 {[%emt 0:02:30]} Nhg6 {[%emt 0:01:30]} 18. Bxg6 {[%emt 0:03:30]} Nxg6 {[%emt 0:01:30]} 19. Nf3 {[%emt 0:04:30]} Bf8 {[%emt 0:00:30]} 20. Qf6 {[%emt 0:00:30]} Be7 {[%emt 0:00:30]} 21. Qg7 {[%emt 0:00:30]} Bf8 {[%emt 0:09:30]} 22. Qf6 {[%emt 0:00:00]} Be7 {[%emt 0:05:25]} 23. Qg7 {[%emt 0:01:34]} Bf8 {[%emt 0:06:20]} 24. Qf6 {[%emt 0:01:31]} Be7 {[%emt 0:00:30]} 25. Qg7 {[%emt 0:00:30]} Bf8 {[%emt 0:00:00]} 26. Qf6 {[%emt 0:00:00]} Be7 {[%emt 0:00:07]} 27. Qg7 {[%emt 0:00:06]} Bf8 {[%emt 0:00:00]} 28. Qf6 {[%emt 0:00:00]} Be7 {[%emt 0:00:05]} 29. Qg7 {[%emt 0:00:00]} Bf8 {[%emt 0:00:02]} 30. Qf6 {[%emt 0:00:00]} Be7 {[%emt 0:00:00]} 1/2-1/2

[Event "Turkish Second League 2019"]
[Site "Konya"]
[Date "2019.07.26"]
[Round "7"]
[White "Guclu, Yagmur"]
[Black "Koca, Cisem"]
[Result "1/2-1/2"]
[ECO "B43"]
[WhiteElo "1516"]
[BlackElo "1526"]
[Annotator "NA"]
[PlyCount "81"]
[EventDate "2019.07.22"]
[EventType "team-tourn"]
[EventCountry "TUR"]
[SourceTitle "playchess.com"]
[Source "ChessBase"]
[SourceQuality "1"]
[TimeControl "5400+30"]

1. e4 {[%emt 0:00:30]} c5 {[%emt 0:02:30]} 2. Nf3 {[%emt 0:00:00]} e6 {[%emt 0:00:30]} 3. d4 {[%emt 0:00:00]} cxd4 {[%emt 0:00:00]} 4. Nxd4 {[%emt 0:00:00]} a6 {[%emt 0:00:00]} 5. Nc3 {[%emt 0:00:00]} b5 {[%emt 0:01:30]} 6. Be3 {[%emt 0:04:30]} Bb7 {[%emt 0:04:30]} 7. Bd3 {[%emt 0:06:30]} Qc7 {[%emt 0:02:30]} 8. O-O {[%emt 0:02:30]} Nf6 {[%emt 0:00:30]} 9. f3 {[%emt 0:06:30]} Be7 {[%emt 0:08:30]} 10. Qe2 {[%emt 0:06:30]} O-O {[%emt 0:13:30]} 11. Rad1 {[%emt 0:15:30]} d6 {[%emt 0:04:30]} 12. Bf2 {[%emt 0:08:30]} Nbd7 {[%emt 0:00:30]} 13. Rfe1 {[%emt 0:09:30]} Rac8 {[%emt 0:01:30]} 14. a3 {[%emt 0:06:30]} Ne5 {[%emt 0:12:30]} 15. f4 {[%emt 0:08:30]} Nc4 {[%emt 0:02:30]} 16. Bxc4 {[%emt 0:01:30]} Qxc4 {[%emt 0:06:30]} 17. h3 {[%emt 0:04:50]} Qxe2 {[%emt 0:11:30]} 18. Rxe2 {[%emt 0:00:07]} Nd7 {[%emt 0:04:30]} 19. e5 {[%emt 0:04:11]} d5 {[%emt 0:10:08]} 20. Ra1 {[%emt 0:00:41]} Rc4 {[%emt 0:02:38]} 21. Na2 {[%emt 0:03:42]} Bc5 {[%emt 0:03:28]} 22. Rd1 {[%emt 0:01:16]} Bxd4 {[%emt 0:00:58]} 23. Bxd4 {[%emt 0:00:56]} Rfc8 {[%emt 0:00:26]} 24. Rdd2 {[%emt 0:03:02]} Nb8 {[%emt 0:01:39]} 25. Be3 {[%emt 0:01:13]} R4c7 {[%emt 0:02:31]} 26. Nb4 {[%emt 0:03:28]} Rc4 {[%emt 0:00:27]} 27. Na2 {[%emt 0:01:07]} R4c7 {[%emt 0:01:30]} 28. Nb4 {[%emt 0:00:50]} Rc4 {[%emt 0:00:08]} 29. Na2 {[%emt 0:00:17]} Nd7 {[%emt 0:01:28]} 30. Kh2 {[%emt 0:01:31]} a5 {[%emt 0:00:30]} 31. c3 {[%emt 0:00:40]} Ba6 {[%emt 0:00:34]} 32. Re1 {[%emt 0:00:23]} Re4 {[%emt 0:00:47]} 33. Rdd1 {[%emt 0:00:39]} f6 {[%emt 0:00:30]} 34. exf6 {[%emt 0:00:26]} Nxf6 {[%emt 0:00:35]} 35. g3 {[%emt 0:00:26]} Rc6 {[%emt 0:00:25]} 36. Bd4 {[%emt 0:00:34]} Rxe1 {[%emt 0:00:59]} 37. Rxe1 {[%emt 0:00:01]} Ne4 {[%emt 0:00:00]} 38. Kg2 {[%emt 0:00:37]} Kf7 {[%emt 0:00:00]} 39. Rd1 {[%emt 0:00:48]} Nd6 {[%emt 0:00:12]} 40. Rd2 {[%emt 0:00:37]} Nc4 {[%emt 0:00:27]} 41. Re2 {[%emt 0:00:27]} 1/2-1/2

[Event "Turkish Second League 2019"]
[Site "Konya"]
[Date "2019.07.26"]
[Round "7"]
[White "Yesil, Azra"]
[Black "Aydemir, Sermin Naz"]
[Result "0-1"]
[ECO "A85"]
[WhiteElo "1299"]
[BlackElo "1491"]
[Annotator "NA"]
[PlyCount "120"]
[EventDate "2019.07.22"]
[EventType "team-tourn"]
[EventCountry "TUR"]
[SourceTitle "playchess.com"]
[Source "ChessBase"]
[SourceQuality "1"]
[TimeControl "5400+30"]

1. d4 {[%emt 0:00:30]} d5 {[%emt 0:00:30]} 2. c4 {[%emt 0:00:30]} e6 {[%emt 0:00:30]} 3. Nc3 {[%emt 0:00:00]} f5 {[%emt 0:00:00]} 4. Nf3 {[%emt 0:00:00]} Nf6 {[%emt 0:00:00]} 5. Bg5 {[%emt 0:00:00]} c6 {[%emt 0:00:30]} 6. e3 {[%emt 0:00:00]} Bd6 {[%emt 0:00:00]} 7. c5 {[%emt 0:01:30]} Bc7 {[%emt 0:00:00]} 8. Be2 {[%emt 0:00:30]} O-O {[%emt 0:00:30]} 9. O-O {[%emt 0:00:30]} Nbd7 {[%emt 0:01:30]} 10. Rc1 {[%emt 0:01:30]} Qe8 {[%emt 0:01:30]} 11. Bxf6 {[%emt 0:03:30]} Nxf6 {[%emt 0:03:30]} 12. h3 {[%emt 0:02:30]} Bd7 {[%emt 0:08:30]} 13. a3 {[%emt 0:02:30]} h6 {[%emt 0:01:30]} 14. Nd2 {[%emt 0:02:30]} Ne4 {[%emt 0:02:30]} 15. Ncxe4 {[%emt 0:02:30]} fxe4 {[%emt 0:01:30]} 16. Bh5 {[%emt 0:08:30]} g6 {[%emt 0:01:30]} 17. Bg4 {[%emt 0:01:30]} h5 {[%emt 0:01:30]} 18. Be2 {[%emt 0:00:30]} e5 {[%emt 0:01:30]} 19. Nb3 {[%emt 0:02:30]} Qe7 {[%emt 0:03:30]} 20. g4 {[%emt 0:08:30]} Qh4 {[%emt 0:02:30]} 21. Kg2 {[%emt 0:00:30]} Rf7 {[%emt 0:01:30]} 22. f3 {[%emt 0:04:30]} exf3+ {[%emt 0:00:30]} 23. Bxf3 {[%emt 0:01:30]} e4 {[%emt 0:00:30]} 24. Qe1 {[%emt 0:04:30]} exf3+ {[%emt 0:00:30]} 25. Rxf3 {[%emt 0:00:30]} Qxe1 {[%emt 0:00:30]} 26. Rxe1 {[%emt 0:00:30]} Rxf3 {[%emt 0:00:00]} 27. Kxf3 {[%emt 0:00:30]} hxg4+ {[%emt 0:00:00]} 28. hxg4 {[%emt 0:00:30]} Rf8+ {[%emt 0:00:30]} 29. Kg2 {[%emt 0:01:30]} Bxg4 {[%emt 0:00:00]} 30. Nd2 {[%emt 0:01:30]} Bf5 {[%emt 0:01:00]} 31. e4 {[%emt 0:02:30]} dxe4 {[%emt 0:00:30]} 32. Nxe4 {[%emt 0:00:30]} Bxe4+ {[%emt 0:00:30]} 33. Rxe4 {[%emt 0:00:00]} Rf7 {[%emt 0:00:30]} 34. b4 {[%emt 0:01:00]} Kg7 {[%emt 0:01:30]} 35. a4 {[%emt 0:01:30]} a6 {[%emt 0:00:30]} 36. b5 {[%emt 0:02:30]} axb5 {[%emt 0:00:30]} 37. axb5 {[%emt 0:00:00]} cxb5 {[%emt 0:03:30]} 38. d5 {[%emt 0:00:00]} Rd7 {[%emt 0:00:30]} 39. c6 {[%emt 0:08:30]} bxc6 {[%emt 0:00:30]} 40. dxc6 {[%emt 0:00:30]} Rf7 {[%emt 0:00:30]} 41. Rb4 {[%emt 0:00:30]} Rf6 {[%emt 0:01:30]} 42. Rxb5 {[%emt 0:01:30]} Rxc6 {[%emt 0:00:00]} 43. Kf3 {[%emt 0:00:30]} Kh6 {[%emt 0:00:00]} 44. Kg4 {[%emt 0:03:30]} Rc4+ {[%emt 0:00:00]} 45. Kh3 {[%emt 0:00:30]} g5 {[%emt 0:01:00]} 46. Rb3 {[%emt 0:05:30]} Rh4+ {[%emt 0:00:30]} 47. Kg2 {[%emt 0:00:30]} Rh2+ {[%emt 0:00:30]} 48. Kg1 {[%emt 0:00:30]} Rc2 {[%emt 0:00:00]} 49. Rh3+ {[%emt 0:00:30]} Kg6 {[%emt 0:00:00]} 50. Rb3 {[%emt 0:01:30]} Kh5 {[%emt 0:00:30]} 51. Rh3+ {[%emt 0:00:30]} Kg4 {[%emt 0:00:30]} 52. Rd3 {[%emt 0:00:30]} Bg3 {[%emt 0:00:30]} 53. Rd1 {[%emt 0:01:30]} Kh3 {[%emt 0:00:30]} 54. Rb1 {[%emt 0:02:30]} Rg2+ {[%emt 0:00:30]} 55. Kf1 {[%emt 0:00:30]} Rf2+ {[%emt 0:02:30]} 56. Kg1 {[%emt 0:00:30]} Re2 {[%emt 0:00:30]} 57. Kf1 {[%emt 0:01:30]} Re1+ {[%emt 0:00:30]} 58. Rxe1 {[%emt 0:00:30]} Bxe1 {[%emt 0:00:00]} 59. Kxe1 {[%emt 0:00:30]} g4 {[%emt 0:00:00]} 60. Kf1 {[%emt 0:00:00]} Kh2 {[%emt 0:00:00]} 0-1

[Event "Turkish Second League 2019"]
[Site "Konya"]
[Date "2019.07.27"]
[Round "8"]
[White "Bashirli, Nail"]
[Black "Tasci, Onur"]
[Result "1-0"]
[ECO "B31"]
[WhiteElo "2367"]
[BlackElo "2063"]
[Annotator "NA"]
[PlyCount "99"]
[EventDate "2019.07.22"]
[EventType "team-tourn"]
[EventCountry "TUR"]
[SourceTitle "playchess.com"]
[Source "ChessBase"]
[SourceQuality "1"]
[TimeControl "5400+30"]

1. e4 c5 2. Nf3 {[%emt 0:00:00]} Nc6 {[%emt 0:01:00]} 3. Nc3 {[%emt 0:00:30]} g6 {[%emt 0:00:00]} 4. Bb5 {[%emt 0:00:30]} Bg7 {[%emt 0:00:00]} 5. O-O {[%emt 0:00:30]} e6 {[%emt 0:02:30]} 6. Bxc6 {[%emt 0:00:30]} bxc6 {[%emt 0:01:30]} 7. d3 {[%emt 0:02:30]} d5 {[%emt 0:03:30]} 8. Na4 {[%emt 0:01:30]} Qa5 {[%emt 0:03:30]} 9. c4 {[%emt 0:00:00]} Nf6 {[%emt 0:10:30]} 10. Bd2 {[%emt 0:01:00]} Qc7 {[%emt 0:04:30]} 11. Nxc5 {[%emt 0:00:00]} O-O {[%emt 0:09:30]} 12. Qc2 {[%emt 0:05:00]} Rb8 {[%emt 0:05:30]} 13. Rab1 {[%emt 0:01:30]} Nd7 {[%emt 0:06:30]} 14. Nxd7 {[%emt 0:05:30]} Qxd7 {[%emt 0:00:30]} 15. Bf4 {[%emt 0:01:30]} Rb6 {[%emt 0:04:30]} 16. Rfe1 {[%emt 0:00:30]} Ba6 {[%emt 0:02:30]} 17. b3 {[%emt 0:00:30]} Rd8 {[%emt 0:02:30]} 18. Ne5 {[%emt 0:01:30]} Qb7 {[%emt 0:02:30]} 19. exd5 {[%emt 0:02:30]} exd5 {[%emt 0:04:30]} 20. Ng4 {[%emt 0:00:30]} f6 {[%emt 0:01:30]} 21. Re6 {[%emt 0:02:30]} Qf7 {[%emt 0:02:30]} 22. Rxf6 {[%emt 0:00:30]} Qe7 {[%emt 0:04:30]} 23. Bg5 {[%emt 0:00:30]} Re8 {[%emt 0:02:30]} 24. h4 {[%emt 0:00:30]} Qe2 {[%emt 0:14:05]} 25. Qxe2 {[%emt 0:01:30]} Rxe2 {[%emt 0:00:02]} 26. Rd6 {[%emt 0:02:30]} dxc4 {[%emt 0:01:19]} 27. Rd8+ {[%emt 0:00:30]} Kf7 {[%emt 0:00:01]} 28. Rd7+ {[%emt 0:00:30]} Kf8 {[%emt 0:00:02]} 29. dxc4 {[%emt 0:00:00]} Bxc4 {[%emt 0:00:49]} 30. Be3 {[%emt 0:02:00]} Rb5 {[%emt 0:04:29]} 31. Rxa7 {[%emt 0:00:30]} Be6 {[%emt 0:01:10]} 32. Ra8+ {[%emt 0:01:30]} Ke7 {[%emt 0:00:38]} 33. Ra7+ {[%emt 0:07:30]} Kf8 {[%emt 0:00:50]} 34. Rd1 {[%emt 0:00:30]} Bd5 {[%emt 0:00:01]} 35. Bd4 {[%emt 0:01:30]} Bxd4 {[%emt 0:01:00]} 36. Rxd4 {[%emt 0:04:30]} Re7 {[%emt 0:00:04]} 37. Rxe7 {[%emt 0:01:30]} Kxe7 {[%emt 0:00:30]} 38. Ne3 {[%emt 0:00:00]} Be6 {[%emt 0:00:45]} 39. f3 {[%emt 0:00:00]} Ra5 {[%emt 0:00:14]} 40. Rd2 {[%emt 0:00:00]} h5 {[%emt 0:01:27]} 41. Kf2 {[%emt 0:00:00]} Rb5 {[%emt 0:02:08]} 42. Nc2 {[%emt 0:00:00]} Rb8 {[%emt 0:01:07]} 43. Ke3 {[%emt 0:00:00]} Bd5 {[%emt 0:00:18]} 44. Kf4 {[%emt 0:01:30]} Kf6 {[%emt 0:01:11]} 45. Ne3 {[%emt 0:00:30]} Be6 {[%emt 0:00:54]} 46. Rd6 {[%emt 0:00:00]} Ra8 {[%emt 0:00:55]} 47. a4 {[%emt 0:02:00]} Ra6 {[%emt 0:02:28]} 48. Nd5+ {[%emt 0:00:30]} Kf7 {[%emt 0:00:12]} 49. Rxe6 {[%emt 0:00:30]} Ra5 {[%emt 0:01:14]} 50. Nc7 {[%emt 0:00:30]} 1-0

[Event "Turkish Second League 2019"]
[Site "Konya"]
[Date "2019.07.27"]
[Round "8"]
[White "Abdulla, Khayala"]
[Black "Guclu, Yagmur"]
[Result "1-0"]
[ECO "C44"]
[WhiteElo "2283"]
[BlackElo "1516"]
[Annotator "NA"]
[PlyCount "87"]
[EventDate "2019.07.22"]
[EventType "team-tourn"]
[EventCountry "TUR"]
[SourceTitle "playchess.com"]
[Source "ChessBase"]
[SourceQuality "1"]
[TimeControl "5400+30"]

1. e4 {[%emt 0:02:30]} e5 {[%emt 0:00:30]} 2. Nf3 {[%emt 0:00:00]} Nc6 {[%emt 0:00:30]} 3. c3 {[%emt 0:00:00]} d5 {[%emt 0:00:00]} 4. Qa4 {[%emt 0:02:30]} Qd6 {[%emt 0:00:00]} 5. Bb5 {[%emt 0:03:30]} Bd7 {[%emt 0:00:00]} 6. O-O {[%emt 0:09:30]} Nf6 {[%emt 0:05:00]} 7. exd5 {[%emt 0:05:30]} Nxd5 {[%emt 0:11:30]} 8. d4 {[%emt 0:03:30]} exd4 {[%emt 0:16:30]} 9. Rd1 {[%emt 0:03:30]} Nb6 {[%emt 0:16:30]} 10. Qb3 {[%emt 0:11:30]} Be6 {[%emt 0:07:30]} 11. Qc2 {[%emt 0:04:30]} O-O-O {[%emt 0:09:30]} 12. Bg5 {[%emt 0:10:30]} f6 {[%emt 0:06:30]} 13. Be3 {[%emt 0:01:30]} Qc5 {[%emt 0:03:39]} 14. Bxc6 {[%emt 0:02:30]} dxe3 {[%emt 0:12:43]} 15. Bxb7+ {[%emt 0:07:30]} Kxb7 {[%emt 0:00:06]} 16. Rxd8 {[%emt 0:00:00]} exf2+ {[%emt 0:00:05]} 17. Qxf2 {[%emt 0:05:00]} Qxf2+ {[%emt 0:07:14]} 18. Kxf2 {[%emt 0:00:30]} Bc5+ {[%emt 0:00:30]} 19. Rd4 {[%emt 0:00:30]} Rd8 {[%emt 0:00:30]} 20. Nbd2 {[%emt 0:00:30]} Bxd4+ {[%emt 0:00:30]} 21. Nxd4 {[%emt 0:00:30]} Bd5 {[%emt 0:00:30]} 22. Nf1 {[%emt 0:00:30]} Nc4 {[%emt 0:00:30]} 23. b3 {[%emt 0:02:30]} Ne5 {[%emt 0:00:45]} 24. Ne3 {[%emt 0:00:30]} Bf7 {[%emt 0:00:14]} 25. b4 {[%emt 0:06:34]} Nd3+ {[%emt 0:00:37]} 26. Kg3 {[%emt 0:01:00]} Ne5 {[%emt 0:00:27]} 27. a4 {[%emt 0:00:29]} Nc4 {[%emt 0:00:30]} 28. Nef5 {[%emt 0:01:20]} g6 {[%emt 0:00:25]} 29. Nh6 {[%emt 0:00:31]} Bd5 {[%emt 0:00:28]} 30. Ng4 {[%emt 0:02:55]} f5 {[%emt 0:00:33]} 31. Nf6 {[%emt 0:00:45]} Bg8 {[%emt 0:00:03]} 32. Re1 {[%emt 0:00:01]} h6 {[%emt 0:00:56]} 33. Re7 {[%emt 0:01:40]} Rf8 {[%emt 0:00:37]} 34. Nd7 {[%emt 0:01:30]} Rc8 {[%emt 0:00:30]} 35. Nc5+ {[%emt 0:00:50]} Ka8 {[%emt 0:00:24]} 36. Nb5 {[%emt 0:01:02]} Kb8 {[%emt 0:00:37]} 37. Nxc7 {[%emt 0:00:22]} Nb6 {[%emt 0:00:32]} 38. N5a6+ {[%emt 0:01:05]} Kb7 {[%emt 0:00:04]} 39. Nb5+ {[%emt 0:00:10]} Kc6 {[%emt 0:00:25]} 40. Nxa7+ {[%emt 0:00:43]} Kd6 {[%emt 0:00:27]} 41. Nxc8+ {[%emt 0:00:49]} Nxc8 {[%emt 0:00:06]} 42. Re8 {[%emt 0:00:00]} Be6 {[%emt 0:00:19]} 43. Nc5 {[%emt 0:00:16]} Bd7 {[%emt 0:00:11]} 44. Rd8 {[%emt 0:00:48]} 1-0

[Event "Turkish Second League 2019"]
[Site "Konya"]
[Date "2019.07.27"]
[Round "8"]
[White "Darban, Morteza"]
[Black "Baltag, Iulian"]
[Result "1/2-1/2"]
[ECO "C68"]
[WhiteElo "2282"]
[BlackElo "2398"]
[Annotator "NA"]
[PlyCount "62"]
[EventDate "2019.07.22"]
[EventType "team-tourn"]
[EventCountry "TUR"]
[SourceTitle "playchess.com"]
[Source "ChessBase"]
[SourceQuality "1"]
[TimeControl "5400+30"]

1. e4 {[%emt 0:00:30]} e5 {[%emt 0:01:30]} 2. Nf3 {[%emt 0:00:30]} Nc6 {[%emt 0:00:30]} 3. Bb5 {[%emt 0:00:30]} a6 {[%emt 0:00:30]} 4. Bxc6 {[%emt 0:00:30]} dxc6 {[%emt 0:00:30]} 5. Nc3 {[%emt 0:00:00]} f6 {[%emt 0:00:30]} 6. d4 {[%emt 0:00:00]} exd4 {[%emt 0:00:30]} 7. Nxd4 {[%emt 0:05:30]} c5 {[%emt 0:00:30]} 8. Nde2 {[%emt 0:00:00]} Qxd1+ {[%emt 0:00:30]} 9. Nxd1 {[%emt 0:00:00]} Bd7 {[%emt 0:01:30]} 10. Bf4 {[%emt 0:00:30]} O-O-O {[%emt 0:00:30]} 11. Ne3 {[%emt 0:00:30]} Bc6 {[%emt 0:03:30]} 12. f3 {[%emt 0:00:30]} Ne7 {[%emt 0:08:30]} 13. Rd1 {[%emt 0:00:30]} Rxd1+ {[%emt 0:05:30]} 14. Kxd1 {[%emt 0:00:30]} g6 {[%emt 0:00:30]} 15. h4 {[%emt 0:37:30]} h5 {[%emt 0:16:30]} 16. Kc1 {[%emt 0:00:30]} Rg8 {[%emt 0:02:30]} 17. Nd1 {[%emt 0:18:30]} b6 {[%emt 0:01:30]} 18. Nf2 {[%emt 0:00:30]} Be8 {[%emt 0:02:30]} 19. Nh3 {[%emt 0:03:30]} Bd7 {[%emt 0:02:30]} 20. Nc3 {[%emt 0:01:30]} Bg7 {[%emt 0:00:30]} 21. Bd2 {[%emt 0:00:30]} f5 {[%emt 0:06:30]} 22. Ng5 {[%emt 0:01:30]} fxe4 {[%emt 0:00:30]} 23. Ncxe4 {[%emt 0:00:30]} Nf5 {[%emt 0:00:30]} 24. c3 {[%emt 0:03:30]} Bc6 {[%emt 0:01:30]} 25. Bf4 {[%emt 0:04:30]} Re8 {[%emt 0:02:30]} 26. g3 {[%emt 0:06:21]} Be5 {[%emt 0:03:30]} 27. Bxe5 {[%emt 0:01:08]} Rxe5 {[%emt 0:00:00]} 28. Kd2 {[%emt 0:02:19]} c4 {[%emt 0:00:00]} 29. Rh2 {[%emt 0:01:44]} a5 {[%emt 0:18:35]} 30. Re2 {[%emt 0:00:13]} Rd5+ {[%emt 0:03:51]} 31. Ke1 {[%emt 0:00:37]} b5 {[%emt 0:00:40]} 1/2-1/2

[Event "Turkish Second League 2019"]
[Site "Konya"]
[Date "2019.07.27"]
[Round "8"]
[White "Karaokcu, Erkin"]
[Black "Garayev, Kanan"]
[Result "1/2-1/2"]
[ECO "A13"]
[WhiteElo "2256"]
[BlackElo "2351"]
[Annotator "NA"]
[PlyCount "60"]
[EventDate "2019.07.22"]
[EventType "team-tourn"]
[EventCountry "TUR"]
[SourceTitle "playchess.com"]
[Source "ChessBase"]
[SourceQuality "1"]
[TimeControl "5400+30"]

1. Nf3 {[%emt 0:00:30]} d5 {[%emt 0:01:30]} 2. c4 {[%emt 0:00:00]} e6 {[%emt 0:00:00]} 3. b3 {[%emt 0:01:00]} d4 {[%emt 0:11:00]} 4. g3 {[%emt 0:01:30]} c5 {[%emt 0:04:30]} 5. Bg2 {[%emt 0:00:30]} Nc6 {[%emt 0:00:30]} 6. O-O {[%emt 0:00:00]} e5 {[%emt 0:02:30]} 7. e3 {[%emt 0:02:00]} Be7 {[%emt 0:07:30]} 8. exd4 {[%emt 0:03:30]} exd4 {[%emt 0:02:30]} 9. d3 {[%emt 0:02:30]} Nf6 {[%emt 0:10:30]} 10. Bf4 {[%emt 0:07:30]} O-O {[%emt 0:02:30]} 11. Re1 {[%emt 0:02:30]} Bd6 {[%emt 0:02:30]} 12. Ne5 {[%emt 0:05:30]} Nxe5 {[%emt 0:10:30]} 13. Bxe5 {[%emt 0:00:30]} Bxe5 {[%emt 0:02:30]} 14. Rxe5 {[%emt 0:00:00]} Bg4 {[%emt 0:02:30]} 15. Qc2 {[%emt 0:08:00]} Re8 {[%emt 0:00:30]} 16. Rxe8+ {[%emt 0:00:30]} Qxe8 {[%emt 0:00:30]} 17. Nd2 {[%emt 0:00:30]} Qe7 {[%emt 0:00:30]} 18. h3 {[%emt 0:00:30]} Bh5 {[%emt 0:00:30]} 19. Nf3 {[%emt 0:00:30]} Bxf3 {[%emt 0:04:30]} 20. Bxf3 {[%emt 0:00:30]} Re8 {[%emt 0:00:30]} 21. Qd2 {[%emt 0:02:30]} b6 {[%emt 0:01:30]} 22. Kg2 {[%emt 0:07:30]} h5 {[%emt 0:02:30]} 23. Qg5 {[%emt 0:02:30]} Qe5 {[%emt 0:01:30]} 24. Qxe5 {[%emt 0:01:30]} Rxe5 {[%emt 0:00:30]} 25. h4 {[%emt 0:01:30]} g6 {[%emt 0:03:30]} 26. a3 {[%emt 0:05:30]} a5 {[%emt 0:02:30]} 27. Rb1 {[%emt 0:01:30]} Re6 {[%emt 0:01:30]} 28. Kf1 {[%emt 0:10:30]} Kf8 {[%emt 0:00:30]} 29. b4 {[%emt 0:08:30]} axb4 {[%emt 0:00:30]} 30. axb4 {[%emt 0:00:30]} cxb4 {[%emt 0:01:30]} 1/2-1/2

[Event "Turkish Second League 2019"]
[Site "Konya"]
[Date "2019.07.27"]
[Round "8"]
[White "Ozenir, Ekin Baris"]
[Black "Bicer, Atakan Mert"]
[Result "1-0"]
[ECO "D11"]
[WhiteElo "2235"]
[BlackElo "1870"]
[Annotator "NA"]
[PlyCount "157"]
[EventDate "2019.07.22"]
[EventType "team-tourn"]
[EventCountry "TUR"]
[SourceTitle "playchess.com"]
[Source "ChessBase"]
[SourceQuality "1"]
[TimeControl "5400+30"]

1. d4 d5 {[%emt 0:00:30]} 2. c4 {[%emt 0:01:00]} c6 {[%emt 0:00:00]} 3. Nf3 {[%emt 0:00:00]} Nf6 {[%emt 0:00:00]} 4. Qc2 {[%emt 0:00:00]} g6 {[%emt 0:01:30]} 5. Bf4 {[%emt 0:01:30]} Bf5 {[%emt 0:05:30]} 6. Qb3 {[%emt 0:01:30]} Qb6 {[%emt 0:00:00]} 7. Nbd2 {[%emt 0:02:30]} Nbd7 {[%emt 0:11:00]} 8. e3 {[%emt 0:02:30]} Bg7 {[%emt 0:01:30]} 9. h3 {[%emt 0:04:30]} h6 {[%emt 0:06:30]} 10. c5 {[%emt 0:04:30]} Qxb3 {[%emt 0:00:30]} 11. axb3 {[%emt 0:00:30]} g5 {[%emt 0:01:30]} 12. Bh2 {[%emt 0:03:30]} O-O {[%emt 0:02:30]} 13. b4 {[%emt 0:01:30]} a6 {[%emt 0:00:00]} 14. Nb3 {[%emt 0:00:30]} Ne8 {[%emt 0:28:00]} 15. b5 {[%emt 0:08:30]} cxb5 {[%emt 0:04:30]} 16. Bxb5 {[%emt 0:01:30]} Rc8 {[%emt 0:06:30]} 17. Be2 {[%emt 0:05:30]} Nc7 {[%emt 0:09:13]} 18. O-O {[%emt 0:23:30]} Rfe8 {[%emt 0:01:57]} 19. Na5 {[%emt 0:04:30]} b6 {[%emt 0:03:32]} 20. cxb6 {[%emt 0:03:30]} Nxb6 {[%emt 0:00:07]} 21. Rfc1 {[%emt 0:00:30]} Nb5 {[%emt 0:00:12]} 22. Nc6 {[%emt 0:01:30]} Nc4 {[%emt 0:02:01]} 23. Rxa6 {[%emt 0:03:30]} Bd7 {[%emt 0:01:10]} 24. Bxc4 {[%emt 0:04:30]} Bxc6 {[%emt 0:01:08]} 25. Bf1 {[%emt 0:01:30]} Bd7 {[%emt 0:01:31]} 26. Raa1 {[%emt 0:04:26]} Nd6 {[%emt 0:04:54]} 27. Nd2 {[%emt 0:04:03]} Rb8 {[%emt 0:02:40]} 28. b3 {[%emt 0:00:52]} Bf8 {[%emt 0:00:55]} 29. Ra5 {[%emt 0:02:51]} e6 {[%emt 0:02:09]} 30. Ra6 {[%emt 0:00:38]} Rbc8 {[%emt 0:00:22]} 31. Rxc8 {[%emt 0:02:56]} Nxc8 {[%emt 0:00:05]} 32. Ra8 {[%emt 0:01:41]} Bb4 {[%emt 0:01:23]} 33. Nf3 {[%emt 0:00:26]} f6 {[%emt 0:00:16]} 34. Rb8 {[%emt 0:01:14]} Bd6 {[%emt 0:00:35]} 35. Bxd6 {[%emt 0:01:33]} Nxd6 {[%emt 0:00:09]} 36. Rb6 {[%emt 0:00:12]} Ne4 {[%emt 0:00:35]} 37. Rb7 {[%emt 0:01:35]} Rd8 {[%emt 0:00:30]} 38. Bd3 {[%emt 0:01:10]} Nd6 {[%emt 0:01:01]} 39. Rb6 {[%emt 0:00:34]} Be8 {[%emt 0:00:15]} 40. Kf1 {[%emt 0:01:06]} Kf8 {[%emt 0:00:31]} 41. Ke2 {[%emt 0:00:51]} Ke7 {[%emt 0:00:05]} 42. Kd2 {[%emt 0:01:32]} Rc8 {[%emt 0:00:16]} 43. Ng1 {[%emt 0:00:31]} e5 {[%emt 0:02:08]} 44. Ne2 {[%emt 0:00:44]} e4 {[%emt 0:01:32]} 45. Ba6 {[%emt 0:00:05]} Rc7 {[%emt 0:00:35]} 46. Nc3 {[%emt 0:00:49]} Bc6 {[%emt 0:00:07]} 47. Kc2 {[%emt 0:00:35]} Kd7 {[%emt 0:00:30]} 48. Kb2 {[%emt 0:00:18]} h5 {[%emt 0:00:43]} 49. Bb5 {[%emt 0:00:43]} Nxb5 {[%emt 0:00:13]} 50. Nxb5 {[%emt 0:00:15]} Rb7 {[%emt 0:00:38]} 51. Rxb7+ {[%emt 0:00:30]} Bxb7 {[%emt 0:00:00]} 52. Nc3 {[%emt 0:00:45]} Kc6 {[%emt 0:00:00]} 53. Na2 {[%emt 0:00:30]} h4 {[%emt 0:00:39]} 54. Kc3 {[%emt 0:00:31]} Bc8 {[%emt 0:00:57]} 55. Kd2 {[%emt 0:00:24]} Be6 {[%emt 0:00:43]} 56. Nc3 {[%emt 0:00:30]} Bc8 {[%emt 0:00:18]} 57. Ke2 {[%emt 0:00:29]} Ba6+ {[%emt 0:00:46]} 58. Ke1 {[%emt 0:00:09]} Bd3 {[%emt 0:00:26]} 59. Na4 {[%emt 0:00:55]} Ba6 {[%emt 0:00:20]} 60. Nc3 {[%emt 0:00:34]} Bd3 {[%emt 0:00:25]} 61. b4 {[%emt 0:00:30]} Bc4 {[%emt 0:00:37]} 62. f3 {[%emt 0:00:29]} f5 {[%emt 0:00:37]} 63. Kf2 {[%emt 0:00:22]} Ba6 {[%emt 0:00:36]} 64. f4 {[%emt 0:00:33]} g4 {[%emt 0:00:37]} 65. g3 {[%emt 0:00:30]} hxg3+ {[%emt 0:01:12]} 66. Kxg3 {[%emt 0:00:01]} gxh3 {[%emt 0:00:38]} 67. Kxh3 {[%emt 0:00:01]} Kd6 {[%emt 0:00:00]} 68. Kh4 {[%emt 0:00:34]} Bc8 {[%emt 0:00:24]} 69. Kg5 {[%emt 0:00:17]} Ke6 {[%emt 0:00:25]} 70. Ne2 {[%emt 0:00:32]} Kd6 {[%emt 0:00:58]} 71. Ng3 {[%emt 0:00:10]} Kc6 {[%emt 0:00:02]} 72. Nxf5 {[%emt 0:00:05]} Be6 {[%emt 0:00:10]} 73. Kf6 {[%emt 0:00:11]} Bd7 {[%emt 0:00:00]} 74. Ne7+ {[%emt 0:00:22]} Kb5 {[%emt 0:00:00]} 75. Nxd5 {[%emt 0:00:44]} Bc6 {[%emt 0:00:04]} 76. Ne7 {[%emt 0:00:00]} Kc4 {[%emt 0:00:34]} 77. Nxc6 {[%emt 0:00:24]} Kd3 {[%emt 0:00:04]} 78. d5 {[%emt 0:00:00]} Kxe3 {[%emt 0:00:36]} 79. d6 {[%emt 0:00:00]} 1-0